[Event "*** SCC Grand Prix: Titled Tuesday Blitz"]
[Site "Chess.com"]
[Date "2020.07.14"]
[Round "4"]
[White "Duhless"]
[Black "Maghalashvili"]
[Result "1-0"]
[WhiteElo "3037"]
[BlackElo "2768"]
[TimeControl "180+1"]
[EndTime "10:39:03 PDT"]
[Termination "Duhless won by resignation"]

1. e4 {[%clk 0:03:00.9]} 1... c6 {[%clk 0:02:57]} 2. d4 {[%clk 0:02:59.5]} 2...
d5 {[%clk 0:02:57.3]} 3. e5 {[%clk 0:03:00.2]} 3... Bf5 {[%clk 0:02:56]} 4. h4
{[%clk 0:03:00.3]} 4... h6 {[%clk 0:02:55.1]} 5. g4 {[%clk 0:02:58]} 5... Bd7
{[%clk 0:02:53.9]} 6. Be3 {[%clk 0:02:55.7]} 6... Qb6 {[%clk 0:02:47.8]} 7. Nd2
{[%clk 0:02:39.9]} 7... e6 {[%clk 0:02:31.6]} 8. Nb3 {[%clk 0:02:31.3]} 8... a5
{[%clk 0:02:03.1]} 9. Nf3 {[%clk 0:02:17.8]} 9... a4 {[%clk 0:01:56.5]} 10. Nc5
{[%clk 0:02:16.4]} 10... Bxc5 {[%clk 0:01:51.6]} 11. dxc5 {[%clk 0:02:15.9]}
11... Qb4+ {[%clk 0:01:38.2]} 12. Qd2 {[%clk 0:02:05.2]} 12... Qxg4 {[%clk
0:01:18.2]} 13. Nd4 {[%clk 0:01:43]} 13... Qe4 {[%clk 0:01:09.3]} 14. Rg1 {[%clk
0:01:42]} 14... Qxe5 {[%clk 0:01:08.6]} 15. O-O-O {[%clk 0:01:41.1]} 15... Ne7
{[%clk 0:01:02.3]} 16. Bf4 {[%clk 0:01:23.1]} 16... Qf6 {[%clk 0:01:01.8]} 17.
Re1 {[%clk 0:01:22.6]} 17... Ng6 {[%clk 0:00:53.7]} 18. Bd6 {[%clk 0:01:22.4]}
18... Qxh4 {[%clk 0:00:48.9]} 19. f4 {[%clk 0:01:08]} 19... Kd8 {[%clk
0:00:32.9]} 20. Bd3 {[%clk 0:00:53.5]} 20... Qf6 {[%clk 0:00:30.9]} 21. Qb4
{[%clk 0:00:50.2]} 21... Nxf4 {[%clk 0:00:21.5]} 22. Be5 {[%clk 0:00:38.6]}
22... Nxd3+ {[%clk 0:00:20.3]} 23. cxd3 {[%clk 0:00:38.4]} 23... Qe7 {[%clk
0:00:18.7]} 24. Nf5 {[%clk 0:00:22.5]} 24... exf5 {[%clk 0:00:10.6]} 25. Qb6+
{[%clk 0:00:19.9]} 25... Ke8 {[%clk 0:00:09.3]} 26. Bd6 {[%clk 0:00:20.1]} 26...
Qe6 {[%clk 0:00:09.3]} 27. Rxe6+ {[%clk 0:00:18.9]} 27... Bxe6 {[%clk
0:00:09.6]} 28. Qxb7 {[%clk 0:00:18.1]} 1-0

[Event "*** SCC Grand Prix: Titled Tuesday Blitz"]
[Site "Chess.com"]
[Date "2020.07.14"]
[Round "4"]
[White "DenisQ"]
[Black "DariaVoit"]
[Result "0-1"]
[WhiteElo "2630"]
[BlackElo "2480"]
[TimeControl "180+1"]
[EndTime "10:39:05 PDT"]
[Termination "DariaVoit won on time"]

1. Nf3 {[%clk 0:03:00.9]} 1... Nf6 {[%clk 0:03:00]} 2. c4 {[%clk 0:02:59.8]}
2... c5 {[%clk 0:02:59.3]} 3. Nc3 {[%clk 0:02:59.1]} 3... Nc6 {[%clk 0:02:59.3]}
4. g3 {[%clk 0:02:58.4]} 4... b6 {[%clk 0:02:47.4]} 5. Bg2 {[%clk 0:02:56.7]}
5... Bb7 {[%clk 0:02:48]} 6. O-O {[%clk 0:02:56.1]} 6... e6 {[%clk 0:02:48.1]}
7. b3 {[%clk 0:02:54.4]} 7... Be7 {[%clk 0:02:47.9]} 8. Bb2 {[%clk 0:02:54.5]}
8... O-O {[%clk 0:02:47.8]} 9. e3 {[%clk 0:02:54]} 9... d5 {[%clk 0:02:47.4]}
10. cxd5 {[%clk 0:02:53.2]} 10... Nxd5 {[%clk 0:02:38.9]} 11. Nxd5 {[%clk
0:02:52.7]} 11... Qxd5 {[%clk 0:02:38.2]} 12. d4 {[%clk 0:02:49.8]} 12... cxd4
{[%clk 0:02:10.7]} 13. Nxd4 {[%clk 0:02:47.2]} 13... Qxg2+ {[%clk 0:01:46.4]}
14. Kxg2 {[%clk 0:02:45.6]} 14... Nxd4+ {[%clk 0:01:46.8]} 15. f3 {[%clk
0:02:45.3]} 15... Nf5 {[%clk 0:01:46.5]} 16. Qe2 {[%clk 0:02:37.8]} 16... Bc5
{[%clk 0:01:41.1]} 17. Bd4 {[%clk 0:02:33.7]} 17... Bxd4 {[%clk 0:01:11]} 18.
exd4 {[%clk 0:02:33]} 18... Nxd4 {[%clk 0:01:11.9]} 19. Qb2 {[%clk 0:02:15.2]}
19... e5 {[%clk 0:01:04.7]} 20. Rac1 {[%clk 0:02:03]} 20... g5 {[%clk
0:00:55.6]} 21. Rc7 {[%clk 0:01:56.6]} 21... Bd5 {[%clk 0:00:50.8]} 22. Qc1
{[%clk 0:01:37.2]} 22... h6 {[%clk 0:00:45.2]} 23. h4 {[%clk 0:01:30.1]} 23...
g4 {[%clk 0:00:40.8]} 24. Qxh6 {[%clk 0:01:27.6]} 24... gxf3+ {[%clk 0:00:11.2]}
0-1

[Event "*** SCC Grand Prix: Titled Tuesday Blitz"]
[Site "Chess.com"]
[Date "2020.07.14"]
[Round "4"]
[White "MFguimaraes"]
[Black "Bazarov04"]
[Result "1-0"]
[WhiteElo "2398"]
[BlackElo "2583"]
[TimeControl "180+1"]
[EndTime "10:39:05 PDT"]
[Termination "MFguimaraes won on time"]

1. e4 {[%clk 0:03:00.9]} 1... d6 {[%clk 0:03:00.1]} 2. d4 {[%clk 0:02:59.2]}
2... Nf6 {[%clk 0:03:00.5]} 3. Nc3 {[%clk 0:02:59]} 3... g6 {[%clk 0:03:00.9]}
4. f4 {[%clk 0:02:58.9]} 4... Bg7 {[%clk 0:03:01.2]} 5. Nf3 {[%clk 0:02:59.5]}
5... O-O {[%clk 0:03:01.3]} 6. e5 {[%clk 0:03:00.1]} 6... dxe5 {[%clk
0:02:59.9]} 7. fxe5 {[%clk 0:03:01]} 7... Nh5 {[%clk 0:02:38.3]} 8. Bc4 {[%clk
0:02:49.1]} 8... Bg4 {[%clk 0:02:34.2]} 9. O-O {[%clk 0:02:47.5]} 9... Nc6
{[%clk 0:02:33.2]} 10. Be3 {[%clk 0:02:46.8]} 10... Kh8 {[%clk 0:02:26.2]} 11.
h3 {[%clk 0:02:45.3]} 11... Bxf3 {[%clk 0:02:19.1]} 12. Rxf3 {[%clk 0:02:46.2]}
12... f6 {[%clk 0:01:57.3]} 13. g4 {[%clk 0:01:55]} 13... fxe5 {[%clk
0:01:56.9]} 14. d5 {[%clk 0:01:33.6]} 14... Rxf3 {[%clk 0:00:58.1]} 15. Qxf3
{[%clk 0:01:27.8]} 15... Nd4 {[%clk 0:00:58.2]} 16. Bxd4 {[%clk 0:01:18.6]}
16... exd4 {[%clk 0:00:59.1]} 17. Ne4 {[%clk 0:01:18.2]} 17... b5 {[%clk
0:00:38.4]} 18. Bb3 {[%clk 0:01:08.2]} 18... Nf6 {[%clk 0:00:22.4]} 19. Ng5
{[%clk 0:01:01.7]} 19... Qe8 {[%clk 0:00:22.7]} 20. d6 {[%clk 0:00:56.5]} 20...
h6 {[%clk 0:00:22.7]} 21. Ne6 {[%clk 0:00:30.3]} 21... Rb8 {[%clk 0:00:15.9]}
22. dxc7 {[%clk 0:00:24.5]} 22... Rc8 {[%clk 0:00:11.6]} 23. a4 {[%clk
0:00:18.1]} 23... b4 {[%clk 0:00:10.9]} 24. Rd1 {[%clk 0:00:17.3]} 24... Nh7
{[%clk 0:00:01.9]} 25. Qb7 {[%clk 0:00:16.3]} 25... Qd7 {[%clk 0:00:01.2]} 26.
Qd5 {[%clk 0:00:15]} 1-0

[Event "*** SCC Grand Prix: Titled Tuesday Blitz"]
[Site "Chess.com"]
[Date "2020.07.14"]
[Round "4"]
[White "mortngabriel"]
[Black "VladaSviridova"]
[Result "1/2-1/2"]
[WhiteElo "2365"]
[BlackElo "2119"]
[TimeControl "180+1"]
[EndTime "10:39:05 PDT"]
[Termination "Game drawn by repetition"]

1. e4 {[%clk 0:03:00.8]} 1... e6 {[%clk 0:02:59.7]} 2. Nf3 {[%clk 0:03:01.2]}
2... d5 {[%clk 0:02:59.6]} 3. e5 {[%clk 0:03:01.9]} 3... c5 {[%clk 0:02:59.9]}
4. b4 {[%clk 0:03:02.6]} 4... cxb4 {[%clk 0:02:59.9]} 5. a3 {[%clk 0:03:03.3]}
5... Nc6 {[%clk 0:02:59.7]} 6. axb4 {[%clk 0:03:03.6]} 6... Bxb4 {[%clk
0:02:59.9]} 7. c3 {[%clk 0:03:04.5]} 7... Be7 {[%clk 0:02:59.8]} 8. d4 {[%clk
0:03:05.4]} 8... f6 {[%clk 0:03:00.2]} 9. Bd3 {[%clk 0:03:05.5]} 9... fxe5
{[%clk 0:02:58.8]} 10. dxe5 {[%clk 0:03:06.4]} 10... Nh6 {[%clk 0:02:52.3]} 11.
O-O {[%clk 0:02:45.4]} 11... Nf7 {[%clk 0:02:28.3]} 12. Re1 {[%clk 0:02:44]}
12... O-O {[%clk 0:02:13]} 13. Na3 {[%clk 0:02:44.1]} 13... Bd7 {[%clk
0:02:05.8]} 14. Nb5 {[%clk 0:02:44.2]} 14... a6 {[%clk 0:02:01.8]} 15. Nbd4
{[%clk 0:02:44.4]} 15... Qc7 {[%clk 0:01:56.3]} 16. Qe2 {[%clk 0:02:32.9]} 16...
Rac8 {[%clk 0:01:44.3]} 17. Bd2 {[%clk 0:02:08.2]} 17... Na5 {[%clk 0:01:37.7]}
18. h4 {[%clk 0:01:59.6]} 18... Nc4 {[%clk 0:01:37.4]} 19. Bc1 {[%clk
0:01:59.8]} 19... Nfxe5 {[%clk 0:00:53.7]} 20. Nxe5 {[%clk 0:01:58.1]} 20...
Nxe5 {[%clk 0:00:53.3]} 21. Qxe5 {[%clk 0:01:58.6]} 21... Qxc3 {[%clk
0:00:51.8]} 22. Ra3 {[%clk 0:01:49.6]} 22... Bxa3 {[%clk 0:00:49.8]} 23. Bxa3
{[%clk 0:01:42]} 23... Qxa3 {[%clk 0:00:47.6]} 24. Re3 {[%clk 0:01:42.5]} 24...
Rc1+ {[%clk 0:00:45.9]} 25. Kh2 {[%clk 0:01:42.9]} 25... Qa1 {[%clk 0:00:44.2]}
26. Qh5 {[%clk 0:01:29.5]} 26... g6 {[%clk 0:00:40]} 27. Bxg6 {[%clk 0:01:29.5]}
27... Rh1+ {[%clk 0:00:36]} 28. Kg3 {[%clk 0:01:29.9]} 28... hxg6 {[%clk
0:00:32.4]} 29. Qxg6+ {[%clk 0:01:30.1]} 29... Kh8 {[%clk 0:00:32.8]} 30. Re5
{[%clk 0:01:11]} 30... Qc3+ {[%clk 0:00:29.1]} 31. f3 {[%clk 0:01:08.2]} 31...
Rf5 {[%clk 0:00:24.7]} 32. Qh6+ {[%clk 0:00:59.5]} 32... Kg8 {[%clk 0:00:24.6]}
33. Qg6+ {[%clk 0:01:00.3]} 33... Kf8 {[%clk 0:00:22.1]} 34. Rxf5+ {[%clk
0:00:44.1]} 34... exf5 {[%clk 0:00:21.4]} 35. Qf6+ {[%clk 0:00:44.6]} 35... Ke8
{[%clk 0:00:20.8]} 36. Qe5+ {[%clk 0:00:44.8]} 36... Kf7 {[%clk 0:00:19.4]} 37.
Qxd5+ {[%clk 0:00:45.3]} 37... Ke7 {[%clk 0:00:16.4]} 38. Qe5+ {[%clk
0:00:45.5]} 38... Kf7 {[%clk 0:00:16.2]} 39. Qd5+ {[%clk 0:00:45.6]} 39... Ke8
{[%clk 0:00:13.9]} 40. Qe5+ {[%clk 0:00:45.8]} 40... Kf7 {[%clk 0:00:13.7]} 41.
Qd5+ {[%clk 0:00:45.9]} 1/2-1/2

[Event "*** SCC Grand Prix: Titled Tuesday Blitz"]
[Site "Chess.com"]
[Date "2020.07.14"]
[Round "4"]
[White "mfwagnerpeixoto"]
[Black "guillembaches"]
[Result "1/2-1/2"]
[WhiteElo "2244"]
[BlackElo "2418"]
[TimeControl "180+1"]
[EndTime "10:39:06 PDT"]
[Termination "Game drawn by repetition"]

1. d4 {[%clk 0:03:00.9]} 1... d5 {[%clk 0:02:59.5]} 2. Nf3 {[%clk 0:03:01.8]}
2... e6 {[%clk 0:02:59.8]} 3. c3 {[%clk 0:03:02]} 3... c5 {[%clk 0:02:56.3]} 4.
Bf4 {[%clk 0:02:55]} 4... Nc6 {[%clk 0:02:56.1]} 5. e3 {[%clk 0:02:54.9]} 5...
Nf6 {[%clk 0:02:56.2]} 6. Bd3 {[%clk 0:02:51.9]} 6... Nh5 {[%clk 0:02:53.2]} 7.
Be5 {[%clk 0:02:29]} 7... Qb6 {[%clk 0:02:51.6]} 8. b3 {[%clk 0:02:07.6]} 8...
Nxe5 {[%clk 0:02:35.4]} 9. Nxe5 {[%clk 0:02:08.5]} 9... Nf6 {[%clk 0:02:31.1]}
10. O-O {[%clk 0:01:59.6]} 10... Be7 {[%clk 0:02:29.2]} 11. Nd2 {[%clk
0:01:56.9]} 11... O-O {[%clk 0:02:26.6]} 12. f4 {[%clk 0:01:54.2]} 12... Qa5
{[%clk 0:02:20.5]} 13. Qc2 {[%clk 0:01:46.8]} 13... g6 {[%clk 0:02:13.3]} 14.
Rac1 {[%clk 0:01:34.4]} 14... Bd7 {[%clk 0:02:08.8]} 15. g4 {[%clk 0:01:29]}
15... Bb5 {[%clk 0:02:02.4]} 16. g5 {[%clk 0:01:21.1]} 16... Nh5 {[%clk
0:01:49.9]} 17. Ng4 {[%clk 0:01:14.2]} 17... Bxd3 {[%clk 0:01:42.6]} 18. Qxd3
{[%clk 0:01:15.1]} 18... Rac8 {[%clk 0:01:34.3]} 19. Nf3 {[%clk 0:00:55.3]}
19... Qxa2 {[%clk 0:01:27]} 20. Ra1 {[%clk 0:00:44.6]} 20... Qxb3 {[%clk
0:01:26.9]} 21. Rfb1 {[%clk 0:00:40.3]} 21... Qc4 {[%clk 0:01:13.1]} 22. Qxc4
{[%clk 0:00:40]} 22... dxc4 {[%clk 0:01:14]} 23. Rxb7 {[%clk 0:00:40]} 23... Bd6
{[%clk 0:01:04.9]} 24. Raxa7 {[%clk 0:00:34.3]} 24... cxd4 {[%clk 0:01:02.4]}
25. Nh6+ {[%clk 0:00:34.2]} 25... Kg7 {[%clk 0:00:55.6]} 26. Rxf7+ {[%clk
0:00:20.3]} 26... Rxf7 {[%clk 0:00:53.7]} 27. Rxf7+ {[%clk 0:00:21.2]} 27... Kh8
{[%clk 0:00:53.8]} 28. Rd7 {[%clk 0:00:16]} 28... dxc3 {[%clk 0:00:41.6]} 29.
Ne1 {[%clk 0:00:11.8]} 29... Bc5 {[%clk 0:00:36.8]} 30. Nc2 {[%clk 0:00:11.5]}
30... Nxf4 {[%clk 0:00:34.9]} 31. Nf7+ {[%clk 0:00:09.3]} 31... Kg8 {[%clk
0:00:34.4]} 32. Nh6+ {[%clk 0:00:10.2]} 32... Kh8 {[%clk 0:00:34]} 33. Nf7+
{[%clk 0:00:09.7]} 33... Kg8 {[%clk 0:00:34.1]} 34. Nh6+ {[%clk 0:00:09.7]}
34... Kh8 {[%clk 0:00:29.7]} 1/2-1/2

[Event "*** SCC Grand Prix: Titled Tuesday Blitz"]
[Site "Chess.com"]
[Date "2020.07.14"]
[Round "4"]
[White "ljuks68"]
[Black "Undisputed92"]
[Result "0-1"]
[WhiteElo "2445"]
[BlackElo "2622"]
[TimeControl "180+1"]
[EndTime "10:39:09 PDT"]
[Termination "Undisputed92 won by checkmate"]

1. e4 {[%clk 0:03:00.9]} 1... e5 {[%clk 0:02:59.4]} 2. Nf3 {[%clk 0:03:01]} 2...
Nc6 {[%clk 0:02:59.4]} 3. Bb5 {[%clk 0:03:00.9]} 3... a6 {[%clk 0:02:59]} 4. Ba4
{[%clk 0:03:00.7]} 4... Nf6 {[%clk 0:02:58.5]} 5. Qe2 {[%clk 0:03:00.8]} 5... b5
{[%clk 0:02:47.6]} 6. Bb3 {[%clk 0:03:00]} 6... Be7 {[%clk 0:02:45.2]} 7. c3
{[%clk 0:02:59.9]} 7... O-O {[%clk 0:02:44.6]} 8. d4 {[%clk 0:02:59.7]} 8... d6
{[%clk 0:02:26.2]} 9. O-O {[%clk 0:02:58.7]} 9... Bg4 {[%clk 0:02:26.1]} 10. Rd1
{[%clk 0:02:58.7]} 10... Qc8 {[%clk 0:02:20.7]} 11. a4 {[%clk 0:02:56.7]} 11...
Rb8 {[%clk 0:02:14.8]} 12. a5 {[%clk 0:02:56.2]} 12... Re8 {[%clk 0:02:06.5]}
13. d5 {[%clk 0:02:55.6]} 13... Nd8 {[%clk 0:02:06.4]} 14. c4 {[%clk 0:02:55.5]}
14... c6 {[%clk 0:01:58.6]} 15. Nc3 {[%clk 0:02:48.3]} 15... cxd5 {[%clk
0:01:46.2]} 16. cxd5 {[%clk 0:02:45]} 16... Nb7 {[%clk 0:01:42.9]} 17. Be3
{[%clk 0:02:31]} 17... Nc5 {[%clk 0:01:27]} 18. Bc2 {[%clk 0:02:04.4]} 18... b4
{[%clk 0:01:20.4]} 19. Na4 {[%clk 0:02:00.4]} 19... b3 {[%clk 0:01:20.2]} 20.
Bd3 {[%clk 0:01:53.5]} 20... Nxd3 {[%clk 0:01:11.6]} 21. Qxd3 {[%clk 0:01:50.9]}
21... Bxf3 {[%clk 0:01:06.3]} 22. gxf3 {[%clk 0:01:50.6]} 22... Nh5 {[%clk
0:01:06.4]} 23. Kh1 {[%clk 0:01:39]} 23... Rb5 {[%clk 0:01:05.1]} 24. Nc3 {[%clk
0:01:30.8]} 24... Rb4 {[%clk 0:01:01.4]} 25. Rg1 {[%clk 0:01:19.9]} 25... Qh3
{[%clk 0:00:58.9]} 26. Bb6 {[%clk 0:01:14.5]} 26... Nf4 {[%clk 0:00:55]} 27. Qe3
{[%clk 0:01:09.1]} 27... Bh4 {[%clk 0:00:51.7]} 28. Ne2 {[%clk 0:00:48.3]} 28...
Ng6 {[%clk 0:00:38.8]} 29. Rac1 {[%clk 0:00:41.3]} 29... h6 {[%clk 0:00:36.5]}
30. Ng3 {[%clk 0:00:32.5]} 30... Bg5 {[%clk 0:00:34.3]} 31. Qc3 {[%clk
0:00:31.8]} 31... Rb5 {[%clk 0:00:26.5]} 32. Nf5 {[%clk 0:00:20.9]} 32... Bxc1
{[%clk 0:00:20.6]} 33. Rxc1 {[%clk 0:00:18.8]} 33... Nh4 {[%clk 0:00:19.1]} 34.
Ng3 {[%clk 0:00:16.2]} 34... Qg2# {[%clk 0:00:18.3]} 0-1

[Event "*** SCC Grand Prix: Titled Tuesday Blitz"]
[Site "Chess.com"]
[Date "2020.07.14"]
[Round "4"]
[White "Ucitelot"]
[Black "Sibelephant"]
[Result "0-1"]
[WhiteElo "2508"]
[BlackElo "3127"]
[TimeControl "180+1"]
[EndTime "10:39:10 PDT"]
[Termination "Sibelephant won by resignation"]

1. e4 {[%clk 0:02:59.6]} 1... e5 {[%clk 0:02:59.2]} 2. Nf3 {[%clk 0:02:59.2]}
2... Nc6 {[%clk 0:02:59.2]} 3. Bb5 {[%clk 0:02:59.3]} 3... g6 {[%clk 0:02:58.4]}
4. d4 {[%clk 0:02:58.3]} 4... exd4 {[%clk 0:02:58.3]} 5. c3 {[%clk 0:02:54.1]}
5... d3 {[%clk 0:02:53.5]} 6. O-O {[%clk 0:02:50.2]} 6... Bg7 {[%clk 0:02:53.5]}
7. Bg5 {[%clk 0:02:49.1]} 7... Nge7 {[%clk 0:02:52.5]} 8. Qxd3 {[%clk
0:02:42.3]} 8... O-O {[%clk 0:02:52.5]} 9. Nbd2 {[%clk 0:02:41.6]} 9... d6
{[%clk 0:02:50]} 10. h3 {[%clk 0:02:41.2]} 10... h6 {[%clk 0:02:42.2]} 11. Bh4
{[%clk 0:02:40.4]} 11... Be6 {[%clk 0:02:18.1]} 12. Rad1 {[%clk 0:02:36.5]}
12... a6 {[%clk 0:02:04.1]} 13. Bc4 {[%clk 0:02:36.2]} 13... Qd7 {[%clk
0:02:00.5]} 14. Bxe6 {[%clk 0:02:35.6]} 14... fxe6 {[%clk 0:02:00.4]} 15. e5
{[%clk 0:02:32]} 15... g5 {[%clk 0:01:34.3]} 16. Bxg5 {[%clk 0:02:28.6]} 16...
hxg5 {[%clk 0:01:33.7]} 17. Nxg5 {[%clk 0:02:26.4]} 17... Rf5 {[%clk 0:01:18.4]}
18. f4 {[%clk 0:02:13.7]} 18... Nxe5 {[%clk 0:01:15.8]} 19. fxe5 {[%clk
0:02:13.3]} 19... Rxg5 {[%clk 0:01:15.5]} 20. Nf3 {[%clk 0:02:13.1]} 20... Rf5
{[%clk 0:01:06.9]} 21. exd6 {[%clk 0:02:11.8]} 21... cxd6 {[%clk 0:01:07]} 22.
Qxd6 {[%clk 0:02:04]} 22... Qxd6 {[%clk 0:01:07.4]} 23. Rxd6 {[%clk 0:02:03.3]}
23... e5 {[%clk 0:00:55.1]} 24. Rd7 {[%clk 0:02:01.2]} 24... Re8 {[%clk
0:00:49.1]} 25. Rxb7 {[%clk 0:01:59.6]} 25... e4 {[%clk 0:00:44.7]} 26. Nd2
{[%clk 0:01:26.1]} 26... Rxf1+ {[%clk 0:00:39.6]} 27. Nxf1 {[%clk 0:01:25.1]}
27... Nd5 {[%clk 0:00:38]} 28. Ng3 {[%clk 0:01:23.1]} 28... Nf4 {[%clk
0:00:31.6]} 29. Kf1 {[%clk 0:01:13.3]} 29... e3 {[%clk 0:00:27.1]} 30. Ne2
{[%clk 0:01:12.3]} 30... Nd3 {[%clk 0:00:24.2]} 31. g3 {[%clk 0:01:07.7]} 31...
Rf8+ {[%clk 0:00:16.8]} 32. Nf4 {[%clk 0:01:06.9]} 32... Nxf4 {[%clk 0:00:12.2]}
33. gxf4 {[%clk 0:01:06.6]} 33... Rxf4+ {[%clk 0:00:12.9]} 34. Ke2 {[%clk
0:01:06.8]} 34... Bh6 {[%clk 0:00:13.6]} 35. Rb6 {[%clk 0:01:06.2]} 35... Rf2+
{[%clk 0:00:11.1]} 36. Ke1 {[%clk 0:01:05]} 36... Kh7 {[%clk 0:00:11.2]} 37. a4
{[%clk 0:00:58.4]} 37... Bf4 {[%clk 0:00:10.4]} 38. Rxa6 {[%clk 0:00:45.3]}
38... Bg3 {[%clk 0:00:09.9]} 39. Re6 {[%clk 0:00:44.9]} 39... Rf6+ {[%clk
0:00:09.6]} 0-1

[Event "*** SCC Grand Prix: Titled Tuesday Blitz"]
[Site "Chess.com"]
[Date "2020.07.14"]
[Round "4"]
[White "Natalya_Buksa"]
[Black "Antipov_Mikhail_Al"]
[Result "1-0"]
[WhiteElo "2542"]
[BlackElo "2832"]
[TimeControl "180+1"]
[EndTime "10:39:11 PDT"]
[Termination "Natalya_Buksa won on time"]

1. d4 {[%clk 0:03:00.9]} 1... Nf6 {[%clk 0:02:57.6]} 2. Nc3 {[%clk 0:03:01.3]}
2... d5 {[%clk 0:02:57.3]} 3. Bf4 {[%clk 0:03:01.4]} 3... c6 {[%clk 0:02:52]} 4.
e3 {[%clk 0:03:01.1]} 4... g6 {[%clk 0:02:34.6]} 5. h4 {[%clk 0:02:59.6]} 5...
Bg7 {[%clk 0:02:32.9]} 6. Nf3 {[%clk 0:02:56.5]} 6... a5 {[%clk 0:02:31.3]} 7.
Ne5 {[%clk 0:02:56]} 7... Na6 {[%clk 0:02:27.6]} 8. g4 {[%clk 0:02:26.3]} 8...
h5 {[%clk 0:02:26.1]} 9. g5 {[%clk 0:02:24.7]} 9... Nd7 {[%clk 0:02:17.1]} 10.
Qd2 {[%clk 0:02:16.6]} 10... Nxe5 {[%clk 0:02:14.1]} 11. Bxe5 {[%clk 0:02:16.3]}
11... Bxe5 {[%clk 0:02:11.4]} 12. dxe5 {[%clk 0:02:17.2]} 12... Qc7 {[%clk
0:02:11.1]} 13. f4 {[%clk 0:02:16.2]} 13... Bf5 {[%clk 0:02:11]} 14. Bd3 {[%clk
0:01:41.1]} 14... Qd7 {[%clk 0:02:09.7]} 15. O-O-O {[%clk 0:01:22]} 15... Nc5
{[%clk 0:01:56.1]} 16. Bxf5 {[%clk 0:01:10.7]} 16... Qxf5 {[%clk 0:01:57]} 17.
Qd4 {[%clk 0:01:10.7]} 17... Ne6 {[%clk 0:01:53.2]} 18. Qb6 {[%clk 0:01:09]}
18... O-O {[%clk 0:01:52.6]} 19. Rhf1 {[%clk 0:01:05.6]} 19... Rfb8 {[%clk
0:01:48.8]} 20. Ne2 {[%clk 0:00:55.5]} 20... Qh3 {[%clk 0:01:32.2]} 21. f5
{[%clk 0:00:52.9]} 21... gxf5 {[%clk 0:01:33.1]} 22. Qb3 {[%clk 0:00:45.6]}
22... Qxh4 {[%clk 0:01:11.2]} 23. Nf4 {[%clk 0:00:29.2]} 23... Nxf4 {[%clk
0:00:24.6]} 24. exf4 {[%clk 0:00:28.4]} 24... a4 {[%clk 0:00:12.4]} 25. Qe3
{[%clk 0:00:28.7]} 25... d4 {[%clk 0:00:11.5]} 26. Qxd4 {[%clk 0:00:26.6]} 26...
a3 {[%clk 0:00:10.2]} 27. e6 {[%clk 0:00:18.7]} 27... axb2+ {[%clk 0:00:07.4]}
28. Kb1 {[%clk 0:00:19.2]} 28... f6 {[%clk 0:00:02.9]} 29. Rh1 {[%clk
0:00:18.7]} 29... Qg3 {[%clk 0:00:01.8]} 30. gxf6 {[%clk 0:00:19]} 30... Rd8
{[%clk 0:00:01.1]} 31. f7+ {[%clk 0:00:18.6]} 1-0

[Event "*** SCC Grand Prix: Titled Tuesday Blitz"]
[Site "Chess.com"]
[Date "2020.07.14"]
[Round "4"]
[White "Batsai"]
[Black "quesfr"]
[Result "0-1"]
[WhiteElo "2386"]
[BlackElo "2219"]
[TimeControl "180+1"]
[EndTime "10:39:12 PDT"]
[Termination "quesfr won by checkmate"]

1. d4 {[%clk 0:03:00.9]} 1... d5 {[%clk 0:02:59.6]} 2. c4 {[%clk 0:03:01.2]}
2... e6 {[%clk 0:02:59.7]} 3. Nc3 {[%clk 0:03:01.4]} 3... Nf6 {[%clk 0:02:58.4]}
4. Nf3 {[%clk 0:03:01.1]} 4... Bb4 {[%clk 0:02:57.1]} 5. e3 {[%clk 0:02:56.6]}
5... O-O {[%clk 0:02:54.5]} 6. Bd3 {[%clk 0:02:56]} 6... dxc4 {[%clk 0:02:44.5]}
7. Bxc4 {[%clk 0:02:56.9]} 7... c5 {[%clk 0:02:44.7]} 8. O-O {[%clk 0:02:56.2]}
8... cxd4 {[%clk 0:02:42.2]} 9. exd4 {[%clk 0:02:57.1]} 9... b6 {[%clk
0:02:39.9]} 10. Bg5 {[%clk 0:02:51.8]} 10... Bb7 {[%clk 0:02:39.8]} 11. Bb3
{[%clk 0:02:38.1]} 11... Be7 {[%clk 0:02:25.6]} 12. Qd3 {[%clk 0:02:29.2]} 12...
Nbd7 {[%clk 0:02:23.3]} 13. Bc2 {[%clk 0:02:23]} 13... Re8 {[%clk 0:02:06.6]}
14. Rfe1 {[%clk 0:02:18.2]} 14... g6 {[%clk 0:02:02.6]} 15. Rad1 {[%clk
0:01:50]} 15... Rc8 {[%clk 0:02:01.9]} 16. Bb3 {[%clk 0:01:48.8]} 16... Qc7
{[%clk 0:01:57.4]} 17. Ne5 {[%clk 0:01:45]} 17... Nd5 {[%clk 0:01:45.6]} 18.
Bxe7 {[%clk 0:01:33.3]} 18... Rxe7 {[%clk 0:01:15.4]} 19. Nb5 {[%clk 0:01:10.9]}
19... Qb8 {[%clk 0:01:11.4]} 20. Ng4 {[%clk 0:01:03.3]} 20... Nf4 {[%clk
0:00:57.4]} 21. Qg3 {[%clk 0:00:43.3]} 21... Bxg2 {[%clk 0:00:50.5]} 22. Re5
{[%clk 0:00:37.4]} 22... Nxe5 {[%clk 0:00:36.4]} 23. Nh6+ {[%clk 0:00:33.8]}
23... Kg7 {[%clk 0:00:27.7]} 24. dxe5 {[%clk 0:00:14.2]} 24... Ne2+ {[%clk
0:00:27.3]} 25. Kxg2 {[%clk 0:00:14.9]} 25... Nxg3 {[%clk 0:00:28]} 26. hxg3
{[%clk 0:00:15.8]} 26... Kxh6 {[%clk 0:00:26.3]} 27. Nd6 {[%clk 0:00:16.7]}
27... Rd8 {[%clk 0:00:24.7]} 28. Rh1+ {[%clk 0:00:17]} 28... Kg7 {[%clk
0:00:24.4]} 29. f4 {[%clk 0:00:16.7]} 29... Rxd6 {[%clk 0:00:24.4]} 30. exd6
{[%clk 0:00:17.6]} 30... Qxd6 {[%clk 0:00:24.9]} 31. Rd1 {[%clk 0:00:17.9]}
31... Qc6+ {[%clk 0:00:24.4]} 32. Kf2 {[%clk 0:00:17.8]} 32... Rd7 {[%clk
0:00:24.7]} 33. Re1 {[%clk 0:00:17.6]} 33... Qc5+ {[%clk 0:00:24.5]} 34. Kg2
{[%clk 0:00:17.4]} 34... Rd2+ {[%clk 0:00:24.6]} 35. Kh3 {[%clk 0:00:17]} 35...
Qf2 {[%clk 0:00:25.1]} 36. Rh1 {[%clk 0:00:15.6]} 36... h5 {[%clk 0:00:25.2]}
37. Kh4 {[%clk 0:00:15.7]} 37... Qg2 {[%clk 0:00:24.2]} 38. Rh2 {[%clk
0:00:16.6]} 38... Qxh2+ {[%clk 0:00:23.7]} 39. Kg5 {[%clk 0:00:17.5]} 39...
Qxg3# {[%clk 0:00:23.9]} 0-1